[Event "*** Titled Tuesday Blitz"]
[Site "Chess.com"]
[Date "2020.04.14"]
[Round "3"]
[White "Alonmindlin"]
[Black "Grischuk"]
[Result "0-1"]
[WhiteElo "2712"]
[BlackElo "3093"]
[TimeControl "180+1"]
[EndTime "10:28:36 PDT"]
[Termination "Grischuk won by resignation"]

1. d4 {[%clk 0:03:00.9]} 1... Nf6 {[%clk 0:02:59.7]} 2. c4 {[%clk 0:03:00.8]}
2... g6 {[%clk 0:02:59.6]} 3. Nc3 {[%clk 0:03:00.7]} 3... Bg7 {[%clk 0:03:00.2]}
4. e4 {[%clk 0:03:00.5]} 4... d6 {[%clk 0:03:00.9]} 5. f3 {[%clk 0:03:00.8]}
5... O-O {[%clk 0:03:00.7]} 6. Be3 {[%clk 0:03:01.1]} 6... a6 {[%clk 0:02:52.8]}
7. Qd2 {[%clk 0:02:57.9]} 7... Nbd7 {[%clk 0:02:50.8]} 8. Bd3 {[%clk 0:02:55.8]}
8... c6 {[%clk 0:02:35.8]} 9. Nge2 {[%clk 0:02:52]} 9... b5 {[%clk 0:02:35.7]}
10. O-O {[%clk 0:02:51.7]} 10... Bb7 {[%clk 0:02:27.5]} 11. b4 {[%clk
0:02:45.8]} 11... e5 {[%clk 0:02:20.2]} 12. cxb5 {[%clk 0:02:18.1]} 12... exd4
{[%clk 0:02:08.1]} 13. Nxd4 {[%clk 0:02:13.2]} 13... cxb5 {[%clk 0:02:08.6]} 14.
a4 {[%clk 0:02:05]} 14... bxa4 {[%clk 0:02:08.3]} 15. Rxa4 {[%clk 0:01:59.2]}
15... d5 {[%clk 0:02:08.5]} 16. exd5 {[%clk 0:01:53.9]} 16... Nb6 {[%clk
0:02:08.4]} 17. Raa1 {[%clk 0:01:17.2]} 17... Nfxd5 {[%clk 0:02:07.3]} 18. Nxd5
{[%clk 0:01:16.7]} 18... Qxd5 {[%clk 0:01:50.9]} 19. Be4 {[%clk 0:01:12]} 19...
Qd7 {[%clk 0:01:51.1]} 20. Bxb7 {[%clk 0:01:06]} 20... Nc4 {[%clk 0:01:41.5]}
21. Bc6 {[%clk 0:01:01.1]} 21... Qd6 {[%clk 0:01:39.2]} 22. Nf5 {[%clk
0:00:44.3]} 22... Qxd2 {[%clk 0:01:11]} 23. Ne7+ {[%clk 0:00:41.6]} 23... Kh8
{[%clk 0:01:11.1]} 24. Bxd2 {[%clk 0:00:41.6]} 24... Nxd2 {[%clk 0:01:03.6]} 25.
Bxa8 {[%clk 0:00:40.9]} 25... Rxa8 {[%clk 0:00:51.8]} 26. Nc6 {[%clk 0:00:37]}
26... Nxf1 {[%clk 0:00:46]} 27. Rxf1 {[%clk 0:00:35.8]} 27... Rc8 {[%clk
0:00:46]} 28. Rd1 {[%clk 0:00:30.3]} 28... Bc3 {[%clk 0:00:36.9]} 29. Rd6 {[%clk
0:00:22]} 29... Kg7 {[%clk 0:00:36.6]} 30. Ne7 {[%clk 0:00:19.9]} 30... Re8
{[%clk 0:00:24.7]} 31. Nd5 {[%clk 0:00:19.9]} 31... Re1+ {[%clk 0:00:24.9]} 32.
Kf2 {[%clk 0:00:20.3]} 32... Rd1 {[%clk 0:00:25.8]} 33. Rc6 {[%clk 0:00:13.8]}
33... Be5 {[%clk 0:00:19.2]} 34. Nc7 {[%clk 0:00:13.3]} 34... Rd2+ {[%clk
0:00:18.2]} 35. Ke3 {[%clk 0:00:13.2]} 35... Rxg2 {[%clk 0:00:18.4]} 36. Nxa6
{[%clk 0:00:12.7]} 36... Rxh2 {[%clk 0:00:15.5]} 37. b5 {[%clk 0:00:13.1]} 37...
Rb2 {[%clk 0:00:14.9]} 38. b6 {[%clk 0:00:13.6]} 38... Bh2 {[%clk 0:00:11.1]}
39. Nc7 {[%clk 0:00:05.5]} 39... Rxb6 {[%clk 0:00:09]} 40. Rc2 {[%clk
0:00:04.1]} 40... Bxc7 {[%clk 0:00:08.6]} 0-1

[Event "*** Titled Tuesday Blitz"]
[Site "Chess.com"]
[Date "2020.04.14"]
[Round "3"]
[White "Kumi29"]
[Black "Mourinho_Jose"]
[Result "1-0"]
[WhiteElo "2419"]
[BlackElo "2621"]
[TimeControl "180+1"]
[EndTime "10:28:38 PDT"]
[Termination "Kumi29 won by checkmate"]

1. d4 {[%clk 0:02:57.5]} 1... d5 {[%clk 0:02:59.8]} 2. Nc3 {[%clk 0:02:57.2]}
2... Bf5 {[%clk 0:02:55.4]} 3. f3 {[%clk 0:02:56.7]} 3... Nf6 {[%clk 0:02:54.7]}
4. Bf4 {[%clk 0:02:56.8]} 4... a6 {[%clk 0:02:52.4]} 5. g4 {[%clk 0:02:55.9]}
5... Bg6 {[%clk 0:02:52.7]} 6. h4 {[%clk 0:02:56.4]} 6... h6 {[%clk 0:02:52.2]}
7. e3 {[%clk 0:02:56.2]} 7... c5 {[%clk 0:02:50]} 8. Bd3 {[%clk 0:02:53.9]} 8...
Bxd3 {[%clk 0:02:46.9]} 9. Qxd3 {[%clk 0:02:54.1]} 9... Nc6 {[%clk 0:02:34.6]}
10. Nge2 {[%clk 0:02:53.5]} 10... e6 {[%clk 0:02:22.9]} 11. O-O-O {[%clk
0:02:45.5]} 11... Nd7 {[%clk 0:02:14.6]} 12. e4 {[%clk 0:02:37.3]} 12... cxd4
{[%clk 0:01:43.3]} 13. Nxd4 {[%clk 0:02:27.4]} 13... e5 {[%clk 0:01:35.6]} 14.
Nxc6 {[%clk 0:02:22.7]} 14... bxc6 {[%clk 0:01:36.5]} 15. exd5 {[%clk
0:02:20.3]} 15... c5 {[%clk 0:01:19.9]} 16. d6 {[%clk 0:02:11.4]} 16... Qf6
{[%clk 0:01:01.9]} 17. Bxe5 {[%clk 0:01:01.5]} 17... Nxe5 {[%clk 0:01:00.8]} 18.
Qe4 {[%clk 0:00:45.3]} 18... Rb8 {[%clk 0:00:48.8]} 19. f4 {[%clk 0:00:44.7]}
19... Bxd6 {[%clk 0:00:45.4]} 20. g5 {[%clk 0:00:31.1]} 20... Qe6 {[%clk
0:00:30.8]} 21. fxe5 {[%clk 0:00:24.8]} 21... Bxe5 {[%clk 0:00:31]} 22. Rhe1
{[%clk 0:00:20.3]} 22... Bxc3 {[%clk 0:00:29.7]} 23. Qc6+ {[%clk 0:00:17.4]}
23... Kf8 {[%clk 0:00:29.7]} 24. Rxe6 {[%clk 0:00:16.8]} 24... Bxb2+ {[%clk
0:00:30.1]} 25. Kd2 {[%clk 0:00:14.9]} 25... fxe6 {[%clk 0:00:29.4]} 26. Qd6+
{[%clk 0:00:13.1]} 26... Kf7 {[%clk 0:00:21.6]} 27. Rf1+ {[%clk 0:00:13.2]}
27... Kg6 {[%clk 0:00:19.7]} 28. Qxe6+ {[%clk 0:00:13.6]} 28... Kh5 {[%clk
0:00:20.6]} 29. Qe2+ {[%clk 0:00:11.7]} 29... Kg6 {[%clk 0:00:20.4]} 30. h5+
{[%clk 0:00:11.3]} 30... Kxg5 {[%clk 0:00:20.2]} 31. Rg1+ {[%clk 0:00:11.5]}
31... Kf5 {[%clk 0:00:20]} 32. Qg4+ {[%clk 0:00:10.5]} 32... Ke5 {[%clk
0:00:19.6]} 33. Re1+ {[%clk 0:00:10.3]} 33... Kd6 {[%clk 0:00:19]} 34. Qe6+
{[%clk 0:00:10.4]} 34... Kc7 {[%clk 0:00:19.1]} 35. Qe7+ {[%clk 0:00:10.3]}
35... Kb6 {[%clk 0:00:13.2]} 36. Re6+ {[%clk 0:00:10.4]} 36... Kb5 {[%clk
0:00:11.8]} 37. Qd7+ {[%clk 0:00:10.6]} 37... Ka5 {[%clk 0:00:12.1]} 38. Qc7+
{[%clk 0:00:08.3]} 38... Ka4 {[%clk 0:00:04.6]} 39. Rxa6+ {[%clk 0:00:07.4]}
39... Kb5 {[%clk 0:00:04]} 40. Ra5+ {[%clk 0:00:05.5]} 40... Kb4 {[%clk
0:00:02.4]} 41. Qxc5# {[%clk 0:00:06.4]} 1-0

[Event "*** Titled Tuesday Blitz"]
[Site "Chess.com"]
[Date "2020.04.14"]
[Round "3"]
[White "Atanejhad"]
[Black "LuckIsMySkill"]
[Result "1-0"]
[WhiteElo "2553"]
[BlackElo "2739"]
[TimeControl "180+1"]
[EndTime "10:28:39 PDT"]
[Termination "Atanejhad won on time"]

1. e4 {[%clk 0:03:00.9]} 1... c5 {[%clk 0:02:59.3]} 2. Nf3 {[%clk 0:03:01]} 2...
d6 {[%clk 0:02:59.2]} 3. d4 {[%clk 0:03:01.5]} 3... cxd4 {[%clk 0:02:58.5]} 4.
Nxd4 {[%clk 0:03:02.4]} 4... Nf6 {[%clk 0:02:58.2]} 5. Nc3 {[%clk 0:03:02.8]}
5... a6 {[%clk 0:02:58.3]} 6. Be3 {[%clk 0:03:02.1]} 6... b5 {[%clk 0:02:52.6]}
7. f3 {[%clk 0:02:59.2]} 7... Bb7 {[%clk 0:02:52.2]} 8. Qd2 {[%clk 0:02:59.1]}
8... Nbd7 {[%clk 0:02:49.1]} 9. a3 {[%clk 0:02:58]} 9... h5 {[%clk 0:02:48.4]}
10. O-O-O {[%clk 0:02:56.9]} 10... Rc8 {[%clk 0:02:32.2]} 11. Kb1 {[%clk
0:02:54.8]} 11... g6 {[%clk 0:02:29]} 12. h3 {[%clk 0:02:52]} 12... Bg7 {[%clk
0:02:23.4]} 13. Bd3 {[%clk 0:02:48.6]} 13... h4 {[%clk 0:02:22.4]} 14. Rhe1
{[%clk 0:02:39.9]} 14... Qa5 {[%clk 0:01:58.9]} 15. Nb3 {[%clk 0:02:32]} 15...
Qc7 {[%clk 0:01:58.6]} 16. Bd4 {[%clk 0:02:26]} 16... Nh5 {[%clk 0:01:48.9]} 17.
Bxg7 {[%clk 0:02:23.5]} 17... Nxg7 {[%clk 0:01:49.8]} 18. f4 {[%clk 0:02:12.1]}
18... Nh5 {[%clk 0:01:36.3]} 19. Nd5 {[%clk 0:01:40.3]} 19... Bxd5 {[%clk
0:01:03.3]} 20. exd5 {[%clk 0:01:41.2]} 20... Nhf6 {[%clk 0:01:03.5]} 21. f5
{[%clk 0:01:38.8]} 21... Ne5 {[%clk 0:01:02.9]} 22. fxg6 {[%clk 0:01:39.1]}
22... fxg6 {[%clk 0:00:57.9]} 23. Nd4 {[%clk 0:01:34.6]} 23... Qc5 {[%clk
0:00:53.5]} 24. Nc6 {[%clk 0:01:06.2]} 24... Nxc6 {[%clk 0:00:45.2]} 25. Bxg6+
{[%clk 0:01:05.7]} 25... Kd8 {[%clk 0:00:42.4]} 26. dxc6 {[%clk 0:01:05.4]}
26... Rxc6 {[%clk 0:00:34.9]} 27. Qe2 {[%clk 0:00:48.6]} 27... Rc7 {[%clk
0:00:29.4]} 28. Qe6 {[%clk 0:00:43.4]} 28... a5 {[%clk 0:00:20]} 29. Bf5 {[%clk
0:00:35]} 29... b4 {[%clk 0:00:17]} 30. axb4 {[%clk 0:00:34.7]} 30... axb4
{[%clk 0:00:17.5]} 31. Re5 {[%clk 0:00:30.4]} 31... Qb6 {[%clk 0:00:13.2]} 32.
Qf7 {[%clk 0:00:16.8]} 32... Re8 {[%clk 0:00:11.7]} 33. Re6 {[%clk 0:00:11.6]}
33... Nd7 {[%clk 0:00:10.6]} 34. Bg6 {[%clk 0:00:10]} 34... Rf8 {[%clk
0:00:02.9]} 35. Qxe7+ {[%clk 0:00:10.3]} 35... Kc8 {[%clk 0:00:03.4]} 36. Rexd6
{[%clk 0:00:10.5]} 36... Qc5 {[%clk 0:00:01.5]} 37. Be8 {[%clk 0:00:06.5]} 1-0

[Event "*** Titled Tuesday Blitz"]
[Site "Chess.com"]
[Date "2020.04.14"]
[Round "3"]
[White "jacky72"]
[Black "axvesik"]
[Result "1/2-1/2"]
[WhiteElo "2686"]
[BlackElo "2434"]
[TimeControl "180+1"]
[EndTime "10:28:39 PDT"]
[Termination "Game drawn by repetition"]

1. d4 {[%clk 0:03:00.9]} 1... Nf6 {[%clk 0:02:58.9]} 2. c4 {[%clk 0:03:01.3]}
2... e6 {[%clk 0:02:58.4]} 3. Nf3 {[%clk 0:03:01.9]} 3... d5 {[%clk 0:02:58]} 4.
Nc3 {[%clk 0:03:02]} 4... dxc4 {[%clk 0:02:57.4]} 5. e3 {[%clk 0:03:01.8]} 5...
a6 {[%clk 0:02:56.6]} 6. Bxc4 {[%clk 0:03:02.1]} 6... b5 {[%clk 0:02:56.9]} 7.
Bb3 {[%clk 0:03:03]} 7... c5 {[%clk 0:02:57.5]} 8. O-O {[%clk 0:03:02.7]} 8...
Bb7 {[%clk 0:02:56.4]} 9. e4 {[%clk 0:03:02.5]} 9... cxd4 {[%clk 0:02:54.9]} 10.
Nxd4 {[%clk 0:03:01.7]} 10... Nc6 {[%clk 0:02:55.2]} 11. Nxc6 {[%clk 0:02:58.9]}
11... Qxd1 {[%clk 0:02:54.7]} 12. Rxd1 {[%clk 0:02:57.2]} 12... Bxc6 {[%clk
0:02:55.4]} 13. e5 {[%clk 0:02:55.5]} 13... Nd7 {[%clk 0:02:52.1]} 14. Bf4
{[%clk 0:02:23.3]} 14... Bc5 {[%clk 0:02:51.4]} 15. Rac1 {[%clk 0:02:21.4]}
15... h6 {[%clk 0:02:42.2]} 16. Ne2 {[%clk 0:02:12.9]} 16... g5 {[%clk
0:02:31.7]} 17. Bg3 {[%clk 0:02:12.1]} 17... h5 {[%clk 0:02:30.4]} 18. h3 {[%clk
0:02:09.8]} 18... Rc8 {[%clk 0:02:17]} 19. a3 {[%clk 0:02:02.8]} 19... Ke7
{[%clk 0:02:07.8]} 20. Ba2 {[%clk 0:02:00.9]} 20... h4 {[%clk 0:02:04.1]} 21.
Bh2 {[%clk 0:02:00.6]} 21... g4 {[%clk 0:01:45.1]} 22. b4 {[%clk 0:01:42.9]}
22... Ba7 {[%clk 0:01:41.4]} 23. hxg4 {[%clk 0:01:32.5]} 23... h3 {[%clk
0:01:33.8]} 24. Nf4 {[%clk 0:01:29.2]} 24... hxg2 {[%clk 0:01:26.2]} 25. Nh5
{[%clk 0:01:22.9]} 25... Bf3 {[%clk 0:01:16.8]} 26. Re1 {[%clk 0:01:07.1]} 26...
Bxg4 {[%clk 0:01:10.7]} 27. Nf6 {[%clk 0:01:07]} 27... Rxc1 {[%clk 0:00:54.5]}
28. Rxc1 {[%clk 0:01:05.6]} 28... Nxe5 {[%clk 0:00:36.9]} 29. Bxe5 {[%clk
0:00:50]} 29... Rh1+ {[%clk 0:00:34]} 30. Kxg2 {[%clk 0:00:50.9]} 30... Rxc1
{[%clk 0:00:34.6]} 31. Nxg4 {[%clk 0:00:51.8]} 31... Rc2 {[%clk 0:00:34.4]} 32.
Bb3 {[%clk 0:00:49.8]} 32... Re2 {[%clk 0:00:30.8]} 33. Kf3 {[%clk 0:00:50.2]}
33... Re1 {[%clk 0:00:31.2]} 34. Bf6+ {[%clk 0:00:48.9]} 34... Kd6 {[%clk
0:00:31.6]} 35. Bc2 {[%clk 0:00:42.9]} 35... Rc1 {[%clk 0:00:28.1]} 36. Be4
{[%clk 0:00:43.1]} 36... Rc4 {[%clk 0:00:20.1]} 37. Bb7 {[%clk 0:00:39.9]} 37...
Bd4 {[%clk 0:00:20.3]} 38. Bxa6 {[%clk 0:00:33.7]} 38... Bxf6 {[%clk 0:00:19.9]}
39. Nxf6 {[%clk 0:00:34.6]} 39... Rc3+ {[%clk 0:00:20.6]} 40. Kf4 {[%clk
0:00:34.6]} 40... Rxa3 {[%clk 0:00:21.2]} 41. Bxb5 {[%clk 0:00:34.8]} 41... Rb3
{[%clk 0:00:21.6]} 42. Ne4+ {[%clk 0:00:29.9]} 42... Ke7 {[%clk 0:00:22]} 43.
Be2 {[%clk 0:00:22.7]} 43... Rxb4 {[%clk 0:00:22.2]} 44. Ke3 {[%clk 0:00:23.6]}
44... f5 {[%clk 0:00:22.4]} 45. Nc5 {[%clk 0:00:21.9]} 45... Kd6 {[%clk
0:00:22.5]} 46. Nd3 {[%clk 0:00:21.7]} 46... Ra4 {[%clk 0:00:22.9]} 47. f4
{[%clk 0:00:21.3]} 47... Re4+ {[%clk 0:00:22.2]} 48. Kd2 {[%clk 0:00:21.4]}
48... Rd4 {[%clk 0:00:22]} 49. Bf3 {[%clk 0:00:20]} 49... Ra4 {[%clk 0:00:21.3]}
50. Ke3 {[%clk 0:00:20.3]} 50... Ra3 {[%clk 0:00:21.6]} 51. Ke2 {[%clk
0:00:20.1]} 51... Ra2+ {[%clk 0:00:21.8]} 52. Ke3 {[%clk 0:00:19.8]} 52... Ra3
{[%clk 0:00:22.3]} 53. Bg2 {[%clk 0:00:20]} 53... Ra2 {[%clk 0:00:22.1]} 54. Kf3
{[%clk 0:00:19.7]} 54... Ra3 {[%clk 0:00:21.9]} 55. Bf1 {[%clk 0:00:19.8]} 55...
Rb3 {[%clk 0:00:21.7]} 56. Ke3 {[%clk 0:00:19.4]} 56... Ra3 {[%clk 0:00:21.6]}
57. Be2 {[%clk 0:00:19.5]} 57... Kd5 {[%clk 0:00:21.9]} 58. Bf3+ {[%clk
0:00:19.2]} 58... Kd6 {[%clk 0:00:22.4]} 1/2-1/2

[Event "*** Titled Tuesday Blitz"]
[Site "Chess.com"]
[Date "2020.04.14"]
[Round "3"]
[White "Alkhoori90"]
[Black "zacachess"]
[Result "1-0"]
[WhiteElo "2060"]
[BlackElo "2281"]
[TimeControl "180+1"]
[EndTime "10:28:39 PDT"]
[Termination "Alkhoori90 won on time"]

1. e4 {[%clk 0:03:00]} 1... c5 {[%clk 0:02:58.5]} 2. f4 {[%clk 0:03:00.1]} 2...
d6 {[%clk 0:02:58.6]} 3. Nf3 {[%clk 0:03:00.5]} 3... Nf6 {[%clk 0:02:56]} 4. Nc3
{[%clk 0:03:00.5]} 4... g6 {[%clk 0:02:56.2]} 5. Bb5+ {[%clk 0:03:00.2]} 5...
Nbd7 {[%clk 0:02:54.6]} 6. O-O {[%clk 0:02:59.4]} 6... Bg7 {[%clk 0:02:54.4]} 7.
Qe1 {[%clk 0:03:00]} 7... a6 {[%clk 0:02:37.5]} 8. Bxd7+ {[%clk 0:02:59.7]} 8...
Nxd7 {[%clk 0:02:36.9]} 9. d3 {[%clk 0:03:00.6]} 9... b5 {[%clk 0:02:32.2]} 10.
Rb1 {[%clk 0:02:58]} 10... Bb7 {[%clk 0:02:14.6]} 11. Qh4 {[%clk 0:02:51.1]}
11... e6 {[%clk 0:02:05.9]} 12. Qh3 {[%clk 0:02:50.7]} 12... Qb6 {[%clk
0:01:56.2]} 13. f5 {[%clk 0:02:34.1]} 13... exf5 {[%clk 0:01:46.1]} 14. exf5
{[%clk 0:02:30.6]} 14... O-O-O {[%clk 0:01:41.3]} 15. Ng5 {[%clk 0:02:23.1]}
15... Bd4+ {[%clk 0:01:15.4]} 16. Be3 {[%clk 0:02:01.1]} 16... Bxe3+ {[%clk
0:00:58.5]} 17. Qxe3 {[%clk 0:02:02]} 17... Ne5 {[%clk 0:00:50.3]} 18. fxg6
{[%clk 0:01:42.2]} 18... hxg6 {[%clk 0:00:48.7]} 19. Nxf7 {[%clk 0:01:39.3]}
19... Rxh2 {[%clk 0:00:42.1]} 20. Ne4 {[%clk 0:01:33.7]} 20... Rdh8 {[%clk
0:00:27.8]} 21. Nxe5 {[%clk 0:01:29.1]} 21... dxe5 {[%clk 0:00:23.2]} 22. Rf6
{[%clk 0:01:28.3]} 22... Qxf6 {[%clk 0:00:15.2]} 23. Qxc5+ {[%clk 0:01:16.9]}
23... Qc6 {[%clk 0:00:13.4]} 24. Qe7 {[%clk 0:01:11.2]} 24... Rh1+ {[%clk
0:00:09.3]} 25. Kf2 {[%clk 0:01:11.6]} 25... Qb6+ {[%clk 0:00:08]} 26. Nc5
{[%clk 0:01:07]} 26... Rxb1 {[%clk 0:00:07.6]} 27. Qd7+ {[%clk 0:01:06.3]} 27...
Kb8 {[%clk 0:00:07.2]} 28. b4 {[%clk 0:01:06.7]} 28... Rxb4 {[%clk 0:00:04.9]}
29. Qe7 {[%clk 0:01:05.9]} 29... Rf4+ {[%clk 0:00:05.8]} 30. Ke2 {[%clk
0:01:05.8]} 30... Rhf8 {[%clk 0:00:05]} 31. Nd7+ {[%clk 0:01:05.8]} 31... Ka7
{[%clk 0:00:03.7]} 32. Nxb6 {[%clk 0:01:06.7]} 32... Kxb6 {[%clk 0:00:04.6]} 33.
Qd6+ {[%clk 0:01:06.4]} 33... Bc6 {[%clk 0:00:03.8]} 34. Kd2 {[%clk 0:01:04.1]}
34... Rf2+ {[%clk 0:00:04.7]} 35. Kc3 {[%clk 0:01:04.5]} 35... R2f4 {[%clk
0:00:05.5]} 36. Qxe5 {[%clk 0:01:02.7]} 36... b4+ {[%clk 0:00:06.4]} 37. Kb2
{[%clk 0:01:02.4]} 37... R8f5 {[%clk 0:00:06]} 38. Qb8+ {[%clk 0:01:02.1]} 38...
Bb7 {[%clk 0:00:05.5]} 39. Qe8 {[%clk 0:00:56.3]} 39... a5 {[%clk 0:00:06.4]}
40. Qxg6+ {[%clk 0:00:56.5]} 40... Rf6 {[%clk 0:00:05.2]} 41. Qg8 {[%clk
0:00:55.7]} 41... a4 {[%clk 0:00:06.1]} 42. a3 {[%clk 0:00:55.4]} 42... bxa3+
{[%clk 0:00:05.9]} 43. Kxa3 {[%clk 0:00:56.3]} 43... R4f5 {[%clk 0:00:06]} 44.
g4 {[%clk 0:00:54]} 44... Rf4 {[%clk 0:00:05.7]} 45. g5 {[%clk 0:00:54.1]} 45...
Rf8 {[%clk 0:00:05.7]} 46. Qe6+ {[%clk 0:00:52.9]} 46... Bc6 {[%clk 0:00:06]}
47. Qe3+ {[%clk 0:00:52.7]} 47... Ka5 {[%clk 0:00:04.7]} 48. Qc5+ {[%clk
0:00:49.9]} 48... Bb5 {[%clk 0:00:04]} 49. Qa7+ {[%clk 0:00:49.9]} 49... Ba6
{[%clk 0:00:03.4]} 50. Qc7+ {[%clk 0:00:49.3]} 50... Kb5 {[%clk 0:00:02.8]} 51.
c4+ {[%clk 0:00:49.7]} 1-0

[Event "*** Titled Tuesday Blitz"]
[Site "Chess.com"]
[Date "2020.04.14"]
[Round "3"]
[White "BelaKis"]
[Black "peixe64"]
[Result "0-1"]
[WhiteElo "2079"]
[BlackElo "2310"]
[TimeControl "180+1"]
[EndTime "10:28:40 PDT"]
[Termination "peixe64 won on time"]

1. Nf3 {[%clk 0:03:00.9]} 1... Nf6 {[%clk 0:02:59.8]} 2. g3 {[%clk 0:03:01.8]}
2... g6 {[%clk 0:02:59.9]} 3. Bg2 {[%clk 0:03:02.4]} 3... Bg7 {[%clk 0:03:00.3]}
4. O-O {[%clk 0:03:03]} 4... d5 {[%clk 0:02:59.5]} 5. c4 {[%clk 0:02:59.1]} 5...
d4 {[%clk 0:02:52]} 6. d3 {[%clk 0:02:55.4]} 6... O-O {[%clk 0:02:49.7]} 7. b4
{[%clk 0:02:45.5]} 7... a5 {[%clk 0:02:49.6]} 8. b5 {[%clk 0:02:42.7]} 8... Re8
{[%clk 0:02:34.5]} 9. a4 {[%clk 0:02:32.2]} 9... e5 {[%clk 0:02:33]} 10. Ra2
{[%clk 0:02:30.1]} 10... Nbd7 {[%clk 0:02:26.4]} 11. e4 {[%clk 0:02:08.5]} 11...
dxe3 {[%clk 0:02:22.8]} 12. fxe3 {[%clk 0:02:08.2]} 12... e4 {[%clk 0:02:14.5]}
13. Nd4 {[%clk 0:01:30.4]} 13... Nc5 {[%clk 0:02:11]} 14. dxe4 {[%clk 0:01:28]}
14... Nfxe4 {[%clk 0:02:07]} 15. Bb2 {[%clk 0:00:54.8]} 15... Qg5 {[%clk
0:01:55.5]} 16. Qf3 {[%clk 0:00:49.6]} 16... Re7 {[%clk 0:01:31.9]} 17. Qf4
{[%clk 0:00:39.7]} 17... Nd3 {[%clk 0:01:09]} 18. Qxg5 {[%clk 0:00:38.2]} 18...
Nxg5 {[%clk 0:01:09.1]} 19. Ba1 {[%clk 0:00:36]} 19... Rxe3 {[%clk 0:01:03.1]}
20. Nf3 {[%clk 0:00:32.6]} 20... Nxf3+ {[%clk 0:00:55.6]} 21. Rxf3 {[%clk
0:00:32.5]} 21... Re1+ {[%clk 0:00:54]} 22. Rf1 {[%clk 0:00:31.7]} 22... Rxf1+
{[%clk 0:00:51.9]} 23. Bxf1 {[%clk 0:00:31.6]} 23... Bxa1 {[%clk 0:00:52.2]} 24.
Rxa1 {[%clk 0:00:31.8]} 24... Nc5 {[%clk 0:00:51.2]} 25. Nc3 {[%clk 0:00:31.3]}
25... Be6 {[%clk 0:00:50.4]} 26. Rd1 {[%clk 0:00:29.5]} 26... Kf8 {[%clk
0:00:46.6]} 27. Kf2 {[%clk 0:00:29.2]} 27... Ke7 {[%clk 0:00:45.8]} 28. Ke3
{[%clk 0:00:29.1]} 28... Rd8 {[%clk 0:00:45.7]} 29. Rxd8 {[%clk 0:00:25.4]}
29... Kxd8 {[%clk 0:00:45.7]} 30. Kd4 {[%clk 0:00:25.1]} 30... b6 {[%clk
0:00:45.3]} 31. Bg2 {[%clk 0:00:18.5]} 31... Ke7 {[%clk 0:00:41.1]} 32. h4
{[%clk 0:00:17.4]} 32... h6 {[%clk 0:00:39.9]} 33. Bf3 {[%clk 0:00:10.5]} 33...
f5 {[%clk 0:00:39.7]} 34. Ke5 {[%clk 0:00:08.7]} 34... Nd7+ {[%clk 0:00:32]} 35.
Kd4 {[%clk 0:00:08.3]} 35... Kd6 {[%clk 0:00:27.4]} 36. Bd5 {[%clk 0:00:08.1]}
36... Nc5 {[%clk 0:00:20.7]} 37. Bxe6 {[%clk 0:00:05.9]} 37... Kxe6 {[%clk
0:00:21.1]} 38. Nd5 {[%clk 0:00:04.7]} 38... Nxa4 {[%clk 0:00:20.5]} 39. Nxc7+
{[%clk 0:00:04.4]} 39... Kd6 {[%clk 0:00:20.5]} 40. Nd5 {[%clk 0:00:05.3]} 40...
g5 {[%clk 0:00:19.3]} 41. h5 {[%clk 0:00:04.1]} 41... Nc5 {[%clk 0:00:15.5]} 42.
Nxb6 {[%clk 0:00:03.7]} 42... Ne6+ {[%clk 0:00:16.1]} 43. Kc3 {[%clk 0:00:02.5]}
43... f4 {[%clk 0:00:16.7]} 0-1

[Event "*** Titled Tuesday Blitz"]
[Site "Chess.com"]
[Date "2020.04.14"]
[Round "3"]
[White "BasilSmash"]
[Black "pollo2016"]
[Result "1/2-1/2"]
[WhiteElo "2382"]
[BlackElo "2590"]
[TimeControl "180+1"]
[EndTime "10:28:41 PDT"]
[Termination "Game drawn by repetition"]

1. d4 {[%clk 0:03:00.9]} 1... Nf6 {[%clk 0:02:58.3]} 2. Nf3 {[%clk 0:03:00.5]}
2... b6 {[%clk 0:02:56.3]} 3. g3 {[%clk 0:02:59.5]} 3... Bb7 {[%clk 0:02:55.8]}
4. Bg2 {[%clk 0:02:59.9]} 4... g6 {[%clk 0:02:56.1]} 5. O-O {[%clk 0:02:59.8]}
5... Bg7 {[%clk 0:02:56.2]} 6. c4 {[%clk 0:02:59.8]} 6... O-O {[%clk 0:02:56.1]}
7. Nc3 {[%clk 0:02:59.9]} 7... Ne4 {[%clk 0:02:55.9]} 8. Nxe4 {[%clk 0:02:59.6]}
8... Bxe4 {[%clk 0:02:55.2]} 9. Be3 {[%clk 0:02:59.6]} 9... c5 {[%clk
0:02:54.4]} 10. Qd2 {[%clk 0:02:57.8]} 10... cxd4 {[%clk 0:02:48.3]} 11. Bxd4
{[%clk 0:02:55.1]} 11... Nc6 {[%clk 0:02:37.4]} 12. Bxg7 {[%clk 0:02:54.6]}
12... Kxg7 {[%clk 0:02:37.3]} 13. Nd4 {[%clk 0:02:48.2]} 13... Bxg2 {[%clk
0:02:34.4]} 14. Kxg2 {[%clk 0:02:49.1]} 14... Qc8 {[%clk 0:02:29.4]} 15. Rac1
{[%clk 0:02:45.2]} 15... d6 {[%clk 0:02:24.8]} 16. b3 {[%clk 0:02:38.8]} 16...
Ne5 {[%clk 0:02:23]} 17. Rfd1 {[%clk 0:02:31.1]} 17... h5 {[%clk 0:02:22]} 18.
Nf3 {[%clk 0:02:24.5]} 18... Nxf3 {[%clk 0:02:18]} 19. exf3 {[%clk 0:02:25.4]}
19... Qb7 {[%clk 0:01:54.6]} 20. Re1 {[%clk 0:02:15.2]} 20... Rac8 {[%clk
0:01:53.7]} 21. Re3 {[%clk 0:02:12.2]} 21... Rfd8 {[%clk 0:01:51.1]} 22. Rce1
{[%clk 0:02:08.5]} 22... e6 {[%clk 0:01:50.6]} 23. Qd4+ {[%clk 0:02:08.4]} 23...
e5 {[%clk 0:01:48.8]} 24. Qe4 {[%clk 0:02:06.4]} 24... Qxe4 {[%clk 0:01:48.1]}
25. fxe4 {[%clk 0:02:07.3]} 25... f6 {[%clk 0:01:46.8]} 26. Rd3 {[%clk
0:02:04.9]} 26... Kf7 {[%clk 0:01:46.8]} 27. Red1 {[%clk 0:02:03.6]} 27... Ke6
{[%clk 0:01:46.9]} 28. f4 {[%clk 0:01:59.8]} 28... exf4 {[%clk 0:01:46]} 29.
gxf4 {[%clk 0:01:59.3]} 29... a5 {[%clk 0:01:46.4]} 30. Kf3 {[%clk 0:01:56.9]}
30... a4 {[%clk 0:01:46]} 31. Rd5 {[%clk 0:01:54.3]} 31... Rc5 {[%clk
0:01:44.7]} 32. R1d4 {[%clk 0:01:41.6]} 32... axb3 {[%clk 0:01:43.4]} 33. axb3
{[%clk 0:01:42.5]} 33... g5 {[%clk 0:01:28.3]} 34. h3 {[%clk 0:01:28.5]} 34...
Rxd5 {[%clk 0:01:22.2]} 35. Rxd5 {[%clk 0:01:24]} 35... Ra8 {[%clk 0:01:16.3]}
36. Rb5 {[%clk 0:01:21.5]} 36... Ra1 {[%clk 0:01:14]} 37. Rxb6 {[%clk
0:01:19.4]} 37... Rf1+ {[%clk 0:01:13.2]} 38. Kg2 {[%clk 0:01:04.4]} 38... Rxf4
{[%clk 0:01:12.5]} 39. c5 {[%clk 0:01:04.4]} 39... Rxe4 {[%clk 0:01:12.2]} 40.
Rxd6+ {[%clk 0:01:02.8]} 40... Ke5 {[%clk 0:01:11.9]} 41. Rd8 {[%clk 0:00:57.4]}
41... Re2+ {[%clk 0:01:06.2]} 42. Kf3 {[%clk 0:00:56.8]} 42... Rc2 {[%clk
0:01:04.8]} 43. b4 {[%clk 0:00:54.6]} 43... Rc3+ {[%clk 0:01:04.5]} 44. Kf2
{[%clk 0:00:53.5]} 44... f5 {[%clk 0:01:04.4]} 45. Ke2 {[%clk 0:00:35.2]} 45...
g4 {[%clk 0:01:02.9]} 46. hxg4 {[%clk 0:00:34.4]} 46... hxg4 {[%clk 0:01:02.5]}
47. Rd3 {[%clk 0:00:33.3]} 47... Rc2+ {[%clk 0:00:49.4]} 48. Rd2 {[%clk
0:00:32.5]} 48... Rxd2+ {[%clk 0:00:48.4]} 49. Kxd2 {[%clk 0:00:33.4]} 49... g3
{[%clk 0:00:49.3]} 50. Ke3 {[%clk 0:00:31.4]} 50... f4+ {[%clk 0:00:44.7]} 51.
Kf3 {[%clk 0:00:31.1]} 51... Kd5 {[%clk 0:00:33.4]} 52. Kg2 {[%clk 0:00:25.9]}
52... Kc6 {[%clk 0:00:32.9]} 53. Kf3 {[%clk 0:00:25]} 53... Kb5 {[%clk
0:00:32.8]} 54. Kg2 {[%clk 0:00:24.3]} 54... Kc6 {[%clk 0:00:32.8]} 55. Kf3
{[%clk 0:00:23.7]} 55... Kb5 {[%clk 0:00:32.5]} 56. Kg2 {[%clk 0:00:23.3]} 56...
Kc6 {[%clk 0:00:31.7]} 1/2-1/2